[Event "Titled Tuesday Blitz January 04 2022"]
[White "Manukyan, Artyom"]
[Black "Martinez Alcantara, Jose Eduardo"]
[WhiteFideId "13305786"]
[BlackFideId "3805662"]
[WhiteElo "2034"]
[BlackElo "2690"]
[Result "0-1"]
[Round "04"]
[TimeControl "180+1"]
[Date "2022.01.04"]
[WhiteClock "0:00:12"]
[BlackClock "0:01:07"]

1. e4 {[%clk 0:03:00]}  c5 {[%clk 0:02:59]} 2. Nc3 {[%clk 0:03:00]}  d6 {[%clk 0:02:59]} 3. f4 {[%clk 0:03:01]}  g6 {[%clk 0:02:59]} 4. Nf3 {[%clk 0:03:01]}  Bg7 {[%clk 0:02:59]} 5. Bc4 {[%clk 0:03:02]}  e6 {[%clk 0:02:59]} 6. O-O {[%clk 0:03:03]}  Ne7 {[%clk 0:02:59]} 7. d3 {[%clk 0:03:02]}  O-O {[%clk 0:02:59]} 8. Bb3 {[%clk 0:03:03]}  Nbc6 {[%clk 0:02:59]} 9. Qe1 {[%clk 0:03:03]}  Nd4 {[%clk 0:02:55]} 10. Nxd4 {[%clk 0:02:58]}  cxd4 {[%clk 0:02:47]} 11. Ne2 {[%clk 0:02:59]}  Kh8 {[%clk 0:02:45]} 12. Bd2 {[%clk 0:02:54]}  f5 {[%clk 0:02:38]} 13. Ng3 {[%clk 0:02:34]}  Bd7 {[%clk 0:02:30]} 14. exf5 {[%clk 0:02:17]}  exf5 {[%clk 0:02:31]} 15. c3 {[%clk 0:02:03]}  Nc6 {[%clk 0:02:14]} 16. Kh1 {[%clk 0:02:01]}  Qb6 {[%clk 0:02:08]} 17. cxd4 {[%clk 0:01:28]}  Rfe8 {[%clk 0:02:01]} 18. Qf2 {[%clk 0:01:15]}  Bxd4 {[%clk 0:02:00]} 19. Qf3 {[%clk 0:01:14]}  Bg7 {[%clk 0:01:55]} 20. Bc3 {[%clk 0:01:14]}  Nd4 {[%clk 0:01:55]} 21. Qd1 {[%clk 0:00:38]}  Bc6 {[%clk 0:01:52]} 22. Bc4 {[%clk 0:00:33]}  a5 {[%clk 0:01:50]} 23. Re1 {[%clk 0:00:26]}  Rxe1+ {[%clk 0:01:37]} 24. Qxe1 {[%clk 0:00:27]}  d5 {[%clk 0:01:36]} 25. Bb3 {[%clk 0:00:23]}  a4 {[%clk 0:01:37]} 26. Bd1 {[%clk 0:00:20]}  Qc7 {[%clk 0:01:24]} 27. Qf2 {[%clk 0:00:19]}  Ne6 {[%clk 0:01:21]} 28. Bxg7+ {[%clk 0:00:15]}  Qxg7 {[%clk 0:01:21]} 29. Bf3 {[%clk 0:00:15]}  Qd4 {[%clk 0:01:18]} 30. Qxd4+ {[%clk 0:00:14]}  Nxd4 {[%clk 0:01:19]} 31. Rc1 {[%clk 0:00:14]}  Re8 {[%clk 0:01:18]} 32. Kg1 {[%clk 0:00:13]}  Nxf3+ {[%clk 0:01:16]} 33. gxf3 {[%clk 0:00:14]}  d4 {[%clk 0:01:17]} 34. Kf2 {[%clk 0:00:14]}  Re3 {[%clk 0:01:17]} 35. Rc4 {[%clk 0:00:13]}  Rxd3 {[%clk 0:01:16]} 36. Ke2 {[%clk 0:00:11]}  Re3+ {[%clk 0:01:16]} 37. Kd2 {[%clk 0:00:11]}  Rxf3 {[%clk 0:01:17]} 38. Rxd4 {[%clk 0:00:11]}  Rf2+ {[%clk 0:01:17]} 39. Kc3 {[%clk 0:00:11]}  Rxh2 {[%clk 0:01:16]} 40. b4 {[%clk 0:00:10]}  axb3 {[%clk 0:01:14]} 41. axb3 {[%clk 0:00:11]}  Rh3 {[%clk 0:01:15]} 42. Rd3 {[%clk 0:00:11]}  h5 {[%clk 0:01:08]} 43. Kd2 {[%clk 0:00:11]}  h4 {[%clk 0:01:08]} 44. Rd8+ {[%clk 0:00:11]}  Kh7 {[%clk 0:01:08]} 45. Ne2 {[%clk 0:00:12]}  Rxb3 {[%clk 0:01:07]} 46. Rc8 {[%clk 0:00:11]}  h3 {[%clk 0:01:07]} 47. Rc7+ {[%clk 0:00:12]}  Kh6 {[%clk 0:01:07]} 0-1


[Site "https://www.chess.com"]

[Event "Titled Tuesday Blitz January 04 2022"]
[White "Matinian, Nikita"]
[Black "Yurovskykh, Oleksandr"]
[WhiteFideId "24129100"]
[BlackFideId "14134020"]
[WhiteElo "2422"]
[BlackElo "2292"]
[Result "1-0"]
[Round "04"]
[TimeControl "180+1"]
[Date "2022.01.04"]
[WhiteClock "0:00:05"]
[BlackClock "0:00:05"]

1. e4 {[%clk 0:02:58]}  d5 {[%clk 0:02:56]} 2. exd5 {[%clk 0:02:57]}  Qxd5 {[%clk 0:02:56]} 3. Nf3 {[%clk 0:02:57]}  Bg4 {[%clk 0:02:55]} 4. Be2 {[%clk 0:02:56]}  Nc6 {[%clk 0:02:55]} 5. h3 {[%clk 0:02:56]}  Bxf3 {[%clk 0:02:54]} 6. Bxf3 {[%clk 0:02:56]}  Qe5+ {[%clk 0:02:54]} 7. Qe2 {[%clk 0:02:56]}  Qxe2+ {[%clk 0:02:54]} 8. Bxe2 {[%clk 0:02:57]}  O-O-O {[%clk 0:02:52]} 9. c3 {[%clk 0:02:57]}  e5 {[%clk 0:02:52]} 10. d3 {[%clk 0:02:56]}  f5 {[%clk 0:02:47]} 11. Nd2 {[%clk 0:02:52]}  g6 {[%clk 0:02:47]} 12. a4 {[%clk 0:02:30]}  Bh6 {[%clk 0:02:44]} 13. a5 {[%clk 0:02:30]}  Nf6 {[%clk 0:02:29]} 14. a6 {[%clk 0:02:29]}  b6 {[%clk 0:02:30]} 15. Nc4 {[%clk 0:02:26]}  Bxc1 {[%clk 0:02:30]} 16. Rxc1 {[%clk 0:02:27]}  e4 {[%clk 0:02:16]} 17. d4 {[%clk 0:02:26]}  Nd5 {[%clk 0:02:12]} 18. g3 {[%clk 0:02:22]}  g5 {[%clk 0:02:07]} 19. Ne3 {[%clk 0:02:22]}  Nce7 {[%clk 0:02:00]} 20. h4 {[%clk 0:02:12]}  h6 {[%clk 0:01:57]} 21. Kd2 {[%clk 0:01:28]}  f4 {[%clk 0:01:54]} 22. Nxd5 {[%clk 0:01:28]}  Nxd5 {[%clk 0:01:52]} 23. hxg5 {[%clk 0:01:23]}  hxg5 {[%clk 0:01:52]} 24. Bg4+ {[%clk 0:01:16]}  Kb8 {[%clk 0:01:52]} 25. Be6 {[%clk 0:01:16]}  c6 {[%clk 0:01:39]} 26. gxf4 {[%clk 0:01:11]}  gxf4 {[%clk 0:01:37]} 27. Bxd5 {[%clk 0:00:54]}  cxd5 {[%clk 0:01:31]} 28. Rcg1 {[%clk 0:00:55]}  Rxh1 {[%clk 0:01:15]} 29. Rxh1 {[%clk 0:00:56]}  Rd7 {[%clk 0:01:15]} 30. Rh4 {[%clk 0:00:50]}  Rf7 {[%clk 0:01:12]} 31. Rh5 {[%clk 0:00:50]}  Rd7 {[%clk 0:01:13]} 32. Rf5 {[%clk 0:00:50]}  f3 {[%clk 0:01:10]} 33. Ke3 {[%clk 0:00:50]}  Kc7 {[%clk 0:01:09]} 34. b3 {[%clk 0:00:50]}  b5 {[%clk 0:01:08]} 35. Rf6 {[%clk 0:00:49]}  Rh7 {[%clk 0:01:03]} 36. Rf5 {[%clk 0:00:27]}  Rd7 {[%clk 0:00:55]} 37. Rf8 {[%clk 0:00:20]}  Kb6 {[%clk 0:00:53]} 38. Rf6+ {[%clk 0:00:10]}  Ka5 {[%clk 0:00:51]} 39. Rc6 {[%clk 0:00:10]}  Rh7 {[%clk 0:00:26]} 40. Rc5 {[%clk 0:00:10]}  Rd7 {[%clk 0:00:22]} 41. c4 {[%clk 0:00:10]}  Kxa6 {[%clk 0:00:18]} 42. Rxb5 {[%clk 0:00:06]}  Rh7 {[%clk 0:00:05]} 43. Rxd5 {[%clk 0:00:05]}  Rh4 {[%clk 0:00:04]} 44. Rd6+ {[%clk 0:00:04]}  Ka5 {[%clk 0:00:05]} 45. Rd5+ {[%clk 0:00:04]}  Kb4 {[%clk 0:00:05]} 46. Rb5+ {[%clk 0:00:04]}  Kc3 {[%clk 0:00:06]} 47. d5 {[%clk 0:00:05]}  a6 {[%clk 0:00:03]} 48. Rb6 {[%clk 0:00:04]}  Rg4 {[%clk 0:00:03]} 49. d6 {[%clk 0:00:04]}  Rg8 {[%clk 0:00:03]} 50. c5 {[%clk 0:00:04]}  Rc8 {[%clk 0:00:04]} 51. c6 {[%clk 0:00:04]}  Rd8 {[%clk 0:00:04]} 52. d7 {[%clk 0:00:04]}  Kc2 {[%clk 0:00:04]} 53. c7 {[%clk 0:00:05]}  Rxd7 {[%clk 0:00:05]} 54. c8=Q+ {[%clk 0:00:05]} 1-0


[Site "https://www.chess.com"]

[Event "Titled Tuesday Blitz January 04 2022"]
[White "Narayanan.S.L"]
[Black "Darini, Pouria"]
[WhiteFideId "5058422"]
[BlackFideId "12502200"]
[WhiteElo "2494"]
[BlackElo "2489"]
[Result "1-0"]
[Round "04"]
[TimeControl "180+1"]
[Date "2022.01.04"]
[WhiteClock "0:00:16"]
[BlackClock "0:00:06"]

1. e4 {[%clk 0:03:00]}  c5 {[%clk 0:02:59]} 2. Nf3 {[%clk 0:02:59]}  d6 {[%clk 0:03:00]} 3. d4 {[%clk 0:02:58]}  cxd4 {[%clk 0:03:00]} 4. Qxd4 {[%clk 0:02:58]}  Nf6 {[%clk 0:03:00]} 5. Bg5 {[%clk 0:02:58]}  Nc6 {[%clk 0:03:00]} 6. Qe3 {[%clk 0:02:58]}  g6 {[%clk 0:02:43]} 7. Nc3 {[%clk 0:02:46]}  Bg7 {[%clk 0:02:43]} 8. O-O-O {[%clk 0:02:46]}  Qa5 {[%clk 0:02:41]} 9. Bc4 {[%clk 0:02:44]}  O-O {[%clk 0:02:40]} 10. h3 {[%clk 0:02:43]}  Be6 {[%clk 0:02:35]} 11. Bb3 {[%clk 0:02:41]}  Bxb3 {[%clk 0:02:34]} 12. cxb3 {[%clk 0:02:41]}  Rac8 {[%clk 0:01:54]} 13. Kb1 {[%clk 0:02:40]}  Rfe8 {[%clk 0:01:54]} 14. a3 {[%clk 0:02:13]}  Qa6 {[%clk 0:01:10]} 15. b4 {[%clk 0:02:12]}  Qc4 {[%clk 0:00:43]} 16. Qd3 {[%clk 0:01:11]}  Qxd3+ {[%clk 0:00:42]} 17. Rxd3 {[%clk 0:01:11]}  Nd7 {[%clk 0:00:42]} 18. Nd5 {[%clk 0:01:12]}  Kf8 {[%clk 0:00:36]} 19. Rc1 {[%clk 0:01:11]}  h6 {[%clk 0:00:18]} 20. Be3 {[%clk 0:01:10]}  a6 {[%clk 0:00:15]} 21. Rd2 {[%clk 0:01:07]}  Nce5 {[%clk 0:00:14]} 22. Nxe5 {[%clk 0:01:06]}  Rxc1+ {[%clk 0:00:13]} 23. Kxc1 {[%clk 0:01:07]}  Rc8+ {[%clk 0:00:14]} 24. Rc2 {[%clk 0:01:04]}  Rxc2+ {[%clk 0:00:13]} 25. Kxc2 {[%clk 0:01:05]}  Nxe5 {[%clk 0:00:14]} 26. b3 {[%clk 0:01:06]}  Nd7 {[%clk 0:00:12]} 27. a4 {[%clk 0:01:02]}  e6 {[%clk 0:00:13]} 28. Nf4 {[%clk 0:01:01]}  Ke7 {[%clk 0:00:11]} 29. f3 {[%clk 0:00:59]}  Ne5 {[%clk 0:00:11]} 30. Ne2 {[%clk 0:00:59]}  Nc6 {[%clk 0:00:10]} 31. Bd2 {[%clk 0:00:59]}  b5 {[%clk 0:00:09]} 32. Bc3 {[%clk 0:00:53]}  Bxc3 {[%clk 0:00:07]} 33. Kxc3 {[%clk 0:00:53]}  Kd7 {[%clk 0:00:05]} 34. h4 {[%clk 0:00:49]}  Kc7 {[%clk 0:00:04]} 35. Nf4 {[%clk 0:00:49]}  Ne5 {[%clk 0:00:03]} 36. Ne2 {[%clk 0:00:49]}  Kc6 {[%clk 0:00:03]} 37. Nd4+ {[%clk 0:00:48]}  Kb6 {[%clk 0:00:04]} 38. f4 {[%clk 0:00:47]}  Nc6 {[%clk 0:00:04]} 39. Nf3 {[%clk 0:00:47]}  Ne7 {[%clk 0:00:04]} 40. g4 {[%clk 0:00:45]}  Nc6 {[%clk 0:00:04]} 41. h5 {[%clk 0:00:40]}  gxh5 {[%clk 0:00:04]} 42. gxh5 {[%clk 0:00:41]}  Ne7 {[%clk 0:00:05]} 43. Nd4 {[%clk 0:00:35]}  d5 {[%clk 0:00:05]} 44. e5 {[%clk 0:00:35]}  Nc6 {[%clk 0:00:04]} 45. Nf3 {[%clk 0:00:32]}  Ne7 {[%clk 0:00:04]} 46. Nh4 {[%clk 0:00:31]}  Kc6 {[%clk 0:00:03]} 47. Kd3 {[%clk 0:00:23]}  Kb6 {[%clk 0:00:03]} 48. Kc3 {[%clk 0:00:23]}  Kc6 {[%clk 0:00:03]} 49. Kc2 {[%clk 0:00:15]}  Kb6 {[%clk 0:00:04]} 50. Kd3 {[%clk 0:00:15]}  Kc6 {[%clk 0:00:04]} 51. Nf3 {[%clk 0:00:11]}  Nf5 {[%clk 0:00:04]} 52. Nh2 {[%clk 0:00:11]}  Ng3 {[%clk 0:00:04]} 53. Ng4 {[%clk 0:00:12]}  Nxh5 {[%clk 0:00:05]} 54. Ke3 {[%clk 0:00:13]}  Ng3 {[%clk 0:00:05]} 55. Nxh6 {[%clk 0:00:13]}  Nf1+ {[%clk 0:00:02]} 56. Kd3 {[%clk 0:00:12]}  Ng3 {[%clk 0:00:02]} 57. Nxf7 {[%clk 0:00:12]}  Kd7 {[%clk 0:00:02]} 58. Nd6 {[%clk 0:00:12]}  Kc6 {[%clk 0:00:03]} 59. Ne8 {[%clk 0:00:12]}  Nf5 {[%clk 0:00:03]} 60. Nf6 {[%clk 0:00:12]}  Kb6 {[%clk 0:00:03]} 61. Nd7+ {[%clk 0:00:11]}  Kc6 {[%clk 0:00:03]} 62. Nc5 {[%clk 0:00:12]}  bxa4 {[%clk 0:00:02]} 63. bxa4 {[%clk 0:00:12]}  a5 {[%clk 0:00:03]} 64. Nxe6 {[%clk 0:00:13]}  axb4 {[%clk 0:00:03]} 65. Nd4+ {[%clk 0:00:13]}  Nxd4 {[%clk 0:00:03]} 66. Kxd4 {[%clk 0:00:14]}  Kb6 {[%clk 0:00:03]} 67. e6 {[%clk 0:00:14]}  Kc6 {[%clk 0:00:03]} 68. f5 {[%clk 0:00:15]}  Kd6 {[%clk 0:00:04]} 69. a5 {[%clk 0:00:15]}  b3 {[%clk 0:00:05]} 70. Kc3 {[%clk 0:00:16]}  b2 {[%clk 0:00:06]} 71. Kxb2 {[%clk 0:00:16]}  d4 {[%clk 0:00:06]} 72. Kc2 {[%clk 0:00:16]} 1-0


[Site "https://www.chess.com"]

[Event "Titled Tuesday Blitz January 04 2022"]
[White "Nepomniachtchi, Ian"]
[Black "Roshka, Yevgeniy"]
[WhiteFideId "4168119"]
[BlackFideId "14129558"]
[WhiteElo "2740"]
[BlackElo "2437"]
[Result "0-1"]
[Round "04"]
[TimeControl "180+1"]
[Date "2022.01.04"]
[WhiteClock "0:00:23"]
[BlackClock "0:00:10"]

1. e4 {[%clk 0:03:00]}  d5 {[%clk 0:02:58]} 2. exd5 {[%clk 0:03:00]}  Qxd5 {[%clk 0:02:59]} 3. Nc3 {[%clk 0:03:00]}  Qd6 {[%clk 0:03:00]} 4. d4 {[%clk 0:03:00]}  Nf6 {[%clk 0:03:00]} 5. Nb5 {[%clk 0:02:59]}  Qb6 {[%clk 0:02:45]} 6. Nf3 {[%clk 0:02:57]}  a6 {[%clk 0:02:44]} 7. Na3 {[%clk 0:02:56]}  Bg4 {[%clk 0:02:38]} 8. Nc4 {[%clk 0:02:56]}  Qe6+ {[%clk 0:02:38]} 9. Nce5 {[%clk 0:02:55]}  Qd6 {[%clk 0:02:17]} 10. Bf4 {[%clk 0:02:41]}  Nc6 {[%clk 0:02:10]} 11. Be2 {[%clk 0:02:27]}  Bxf3 {[%clk 0:01:41]} 12. Bxf3 {[%clk 0:02:26]}  Nxd4 {[%clk 0:01:36]} 13. Bxb7 {[%clk 0:02:24]}  Qb4+ {[%clk 0:01:31]} 14. c3 {[%clk 0:02:21]}  Qxb7 {[%clk 0:01:31]} 15. Qxd4 {[%clk 0:02:20]}  Qxg2 {[%clk 0:01:29]} 16. Qa4+ {[%clk 0:02:18]}  c6 {[%clk 0:01:29]} 17. O-O-O {[%clk 0:02:17]}  Qe4 {[%clk 0:01:23]} 18. Qxc6+ {[%clk 0:01:45]}  Qxc6 {[%clk 0:01:22]} 19. Nxc6 {[%clk 0:01:46]}  e6 {[%clk 0:01:18]} 20. b4 {[%clk 0:01:41]}  Rc8 {[%clk 0:01:15]} 21. Na7 {[%clk 0:01:22]}  Ra8 {[%clk 0:01:02]} 22. Be3 {[%clk 0:01:13]}  Nd5 {[%clk 0:01:02]} 23. Bd4 {[%clk 0:01:11]}  Nxc3 {[%clk 0:00:58]} 24. Bxc3 {[%clk 0:01:10]}  Rxa7 {[%clk 0:00:59]} 25. Rhe1 {[%clk 0:01:07]}  Be7 {[%clk 0:00:50]} 26. Re4 {[%clk 0:00:57]}  Bf6 {[%clk 0:00:38]} 27. Rc4 {[%clk 0:00:50]}  Bxc3 {[%clk 0:00:35]} 28. Rc8+ {[%clk 0:00:47]}  Ke7 {[%clk 0:00:35]} 29. Rxh8 {[%clk 0:00:48]}  Rc7 {[%clk 0:00:25]} 30. Rxh7 {[%clk 0:00:47]}  Bxb4+ {[%clk 0:00:25]} 31. Kb2 {[%clk 0:00:45]}  Bc3+ {[%clk 0:00:20]} 32. Kb3 {[%clk 0:00:45]}  Be5 {[%clk 0:00:19]} 33. Rh4 {[%clk 0:00:44]}  Rc3+ {[%clk 0:00:18]} 34. Ka4 {[%clk 0:00:38]}  Rc2 {[%clk 0:00:18]} 35. a3 {[%clk 0:00:33]}  Rxf2 {[%clk 0:00:17]} 36. Ka5 {[%clk 0:00:33]}  Bxh2 {[%clk 0:00:13]} 37. Kxa6 {[%clk 0:00:31]}  g5 {[%clk 0:00:13]} 38. Rg4 {[%clk 0:00:20]}  Bf4 {[%clk 0:00:12]} 39. a4 {[%clk 0:00:20]}  f5 {[%clk 0:00:11]} 40. Rgg1 {[%clk 0:00:20]}  g4 {[%clk 0:00:10]} 41. a5 {[%clk 0:00:21]}  Ra2 {[%clk 0:00:08]} 42. Ra1 {[%clk 0:00:21]}  Rxa1 {[%clk 0:00:06]} 43. Rxa1 {[%clk 0:00:22]}  Be3 {[%clk 0:00:03]} 44. Kb7 {[%clk 0:00:19]}  f4 {[%clk 0:00:03]} 45. a6 {[%clk 0:00:18]}  g3 {[%clk 0:00:03]} 46. Ra3 {[%clk 0:00:18]}  g2 {[%clk 0:00:02]} 47. a7 {[%clk 0:00:17]}  Bxa7 {[%clk 0:00:02]} 48. Rxa7 {[%clk 0:00:18]}  g1=Q {[%clk 0:00:02]} 49. Ra8 {[%clk 0:00:18]}  Qg2+ {[%clk 0:00:02]} 50. Kc7 {[%clk 0:00:19]}  Qxa8 {[%clk 0:00:03]} 51. Kb6 {[%clk 0:00:19]}  Qb8+ {[%clk 0:00:03]} 52. Kc6 {[%clk 0:00:19]}  Qd6+ {[%clk 0:00:04]} 53. Kb5 {[%clk 0:00:19]}  f3 {[%clk 0:00:05]} 54. Kc4 {[%clk 0:00:19]}  e5 {[%clk 0:00:05]} 55. Kc3 {[%clk 0:00:20]}  e4 {[%clk 0:00:06]} 56. Kc2 {[%clk 0:00:21]}  e3 {[%clk 0:00:07]} 57. Kb3 {[%clk 0:00:22]}  e2 {[%clk 0:00:08]} 58. Kc4 {[%clk 0:00:22]}  f2 {[%clk 0:00:09]} 59. Kc3 {[%clk 0:00:23]}  Qd1 {[%clk 0:00:09]} 60. Kb4 {[%clk 0:00:23]}  Kd6 {[%clk 0:00:10]} 61. Kb5 {[%clk 0:00:23]}  Qd5+ {[%clk 0:00:10]} 0-1


[Site "https://www.chess.com"]

[Event "Titled Tuesday Blitz January 04 2022"]
[White "Perez Gormaz, Matias"]
[Black "Tasev, Dejan"]
[WhiteFideId "3406342"]
[BlackFideId "936618"]
[WhiteElo "2352"]
[BlackElo "2253"]
[Result "0-1"]
[Round "04"]
[TimeControl "180+1"]
[Date "2022.01.04"]
[WhiteClock "0:00:03"]
[BlackClock "0:00:42"]

1. e4 {[%clk 0:03:00]}  c6 {[%clk 0:02:59]} 2. d4 {[%clk 0:03:00]}  d5 {[%clk 0:03:00]} 3. e5 {[%clk 0:03:00]}  Bf5 {[%clk 0:03:00]} 4. h4 {[%clk 0:03:00]}  h6 {[%clk 0:02:59]} 5. g4 {[%clk 0:02:59]}  Be4 {[%clk 0:03:00]} 6. f3 {[%clk 0:02:58]}  Bg6 {[%clk 0:03:00]} 7. e6 {[%clk 0:02:59]}  Qd6 {[%clk 0:02:58]} 8. exf7+ {[%clk 0:02:55]}  Kxf7 {[%clk 0:02:58]} 9. f4 {[%clk 0:02:35]}  h5 {[%clk 0:02:35]} 10. Nf3 {[%clk 0:02:20]}  Nd7 {[%clk 0:02:34]} 11. g5 {[%clk 0:02:16]}  e6 {[%clk 0:02:28]} 12. Bh3 {[%clk 0:02:14]}  Ne7 {[%clk 0:02:22]} 13. Nc3 {[%clk 0:02:02]}  Nf5 {[%clk 0:02:19]} 14. Ne2 {[%clk 0:02:03]}  c5 {[%clk 0:02:06]} 15. c3 {[%clk 0:02:03]}  Rc8 {[%clk 0:02:02]} 16. O-O {[%clk 0:01:54]}  Qb6 {[%clk 0:01:59]} 17. Kg2 {[%clk 0:01:50]}  Bd6 {[%clk 0:01:57]} 18. Ne5+ {[%clk 0:01:45]}  Nxe5 {[%clk 0:01:38]} 19. fxe5 {[%clk 0:01:45]}  Be7 {[%clk 0:01:22]} 20. Nf4 {[%clk 0:01:18]}  cxd4 {[%clk 0:01:20]} 21. cxd4 {[%clk 0:00:33]}  Qc6 {[%clk 0:01:09]} 22. Rf2 {[%clk 0:00:23]}  Nxh4+ {[%clk 0:01:05]} 23. Kh1 {[%clk 0:00:22]}  Nf5 {[%clk 0:01:05]} 24. Qd3 {[%clk 0:00:10]}  Rhf8 {[%clk 0:00:59]} 25. Bd2 {[%clk 0:00:08]}  h4 {[%clk 0:00:57]} 26. Raf1 {[%clk 0:00:08]}  Ng3+ {[%clk 0:00:46]} 27. Qxg3 {[%clk 0:00:08]}  hxg3 {[%clk 0:00:46]} 28. Rf3 {[%clk 0:00:06]}  Bf5 {[%clk 0:00:45]} 29. g6+ {[%clk 0:00:02]}  Ke8 {[%clk 0:00:44]} 30. Bxf5 {[%clk 0:00:02]}  Rxf5 {[%clk 0:00:44]} 31. Rxg3 {[%clk 0:00:02]}  Qc2 {[%clk 0:00:42]} 32. Bc3 {[%clk 0:00:02]}  Qe4+ {[%clk 0:00:42]} 33. Kh2 {[%clk 0:00:03]}  Rxf4 {[%clk 0:00:42]} 0-1


[Site "https://www.chess.com"]

[Event "Titled Tuesday Blitz January 04 2022"]
[White "Seo, Jung Min"]
[Black "Pert, Richard G"]
[WhiteFideId "1734687"]
[BlackFideId "404748"]
[WhiteElo "2401"]
[BlackElo "2441"]
[Result "1-0"]
[Round "04"]
[TimeControl "180+1"]
[Date "2022.01.04"]
[WhiteClock "0:00:17"]
[BlackClock "0:00:08"]

1. e4 {[%clk 0:03:00]}  c5 {[%clk 0:02:59]} 2. Nf3 {[%clk 0:03:01]}  d6 {[%clk 0:02:59]} 3. d4 {[%clk 0:03:01]}  cxd4 {[%clk 0:02:59]} 4. Qxd4 {[%clk 0:03:01]}  Nc6 {[%clk 0:02:58]} 5. Bb5 {[%clk 0:02:59]}  Bd7 {[%clk 0:02:57]} 6. Bxc6 {[%clk 0:02:57]}  Bxc6 {[%clk 0:02:58]} 7. O-O {[%clk 0:02:51]}  Nf6 {[%clk 0:02:55]} 8. Nc3 {[%clk 0:02:46]}  g6 {[%clk 0:02:40]} 9. Nd5 {[%clk 0:02:29]}  Bg7 {[%clk 0:02:37]} 10. Bg5 {[%clk 0:02:25]}  Bxd5 {[%clk 0:02:01]} 11. exd5 {[%clk 0:02:25]}  O-O {[%clk 0:02:01]} 12. c4 {[%clk 0:02:24]}  a6 {[%clk 0:01:57]} 13. Rae1 {[%clk 0:02:06]}  b5 {[%clk 0:01:55]} 14. b3 {[%clk 0:02:06]}  bxc4 {[%clk 0:01:52]} 15. bxc4 {[%clk 0:02:06]}  Qc7 {[%clk 0:01:47]} 16. Nd2 {[%clk 0:01:56]}  Rfc8 {[%clk 0:01:40]} 17. Qe3 {[%clk 0:01:55]}  Re8 {[%clk 0:01:31]} 18. Rb1 {[%clk 0:01:52]}  Rab8 {[%clk 0:01:29]} 19. h3 {[%clk 0:01:48]}  Nd7 {[%clk 0:01:19]} 20. Rxb8 {[%clk 0:01:45]}  Qxb8 {[%clk 0:01:19]} 21. Rb1 {[%clk 0:01:43]}  Qc7 {[%clk 0:01:19]} 22. Qa3 {[%clk 0:01:32]}  Nc5 {[%clk 0:01:17]} 23. Be3 {[%clk 0:01:29]}  e6 {[%clk 0:01:08]} 24. dxe6 {[%clk 0:01:22]}  Rxe6 {[%clk 0:01:04]} 25. Nb3 {[%clk 0:01:13]}  Ne4 {[%clk 0:00:51]} 26. Qxa6 {[%clk 0:01:04]}  h5 {[%clk 0:00:50]} 27. Rc1 {[%clk 0:01:00]}  Nc3 {[%clk 0:00:49]} 28. Rc2 {[%clk 0:00:55]}  Kh7 {[%clk 0:00:41]} 29. Qa7 {[%clk 0:00:51]}  Qc6 {[%clk 0:00:30]} 30. Qxf7 {[%clk 0:00:46]}  Rf6 {[%clk 0:00:26]} 31. Qe7 {[%clk 0:00:40]}  Nd5 {[%clk 0:00:21]} 32. Qe4 {[%clk 0:00:35]}  Nxe3 {[%clk 0:00:20]} 33. Qxc6 {[%clk 0:00:35]}  Nxc2 {[%clk 0:00:21]} 34. a4 {[%clk 0:00:32]}  Nb4 {[%clk 0:00:19]} 35. Qb7 {[%clk 0:00:27]}  Nd3 {[%clk 0:00:18]} 36. a5 {[%clk 0:00:27]}  Rxf2 {[%clk 0:00:17]} 37. a6 {[%clk 0:00:24]}  Rb2 {[%clk 0:00:16]} 38. a7 {[%clk 0:00:20]}  Rb1+ {[%clk 0:00:17]} 39. Kh2 {[%clk 0:00:20]}  Kh6 {[%clk 0:00:17]} 40. a8=Q {[%clk 0:00:19]}  Be5+ {[%clk 0:00:16]} 41. g3 {[%clk 0:00:19]}  Rb2+ {[%clk 0:00:15]} 42. Kg1 {[%clk 0:00:19]}  Rb1+ {[%clk 0:00:14]} 43. Kg2 {[%clk 0:00:20]}  Rb2+ {[%clk 0:00:14]} 44. Kf3 {[%clk 0:00:19]}  Ne1+ {[%clk 0:00:14]} 45. Ke4 {[%clk 0:00:18]}  Re2+ {[%clk 0:00:13]} 46. Kd5 {[%clk 0:00:19]}  Nc2 {[%clk 0:00:10]} 47. Qf8+ {[%clk 0:00:18]}  Kg5 {[%clk 0:00:08]} 48. Qbe7+ {[%clk 0:00:17]} 1-0


[Site "https://www.chess.com"]

[Event "Titled Tuesday Blitz January 04 2022"]
[White "Sjugirov, Sanan"]
[Black "Nenezic, Marko"]
[WhiteFideId "4189302"]
[BlackFideId "912123"]
[WhiteElo "2602"]
[BlackElo "2484"]
[Result "1-0"]
[Round "04"]
[TimeControl "180+1"]
[Date "2022.01.04"]
[WhiteClock "0:01:07"]
[BlackClock "0:00:29"]

1. e4 {[%clk 0:03:00]}  c5 {[%clk 0:03:00]} 2. Nf3 {[%clk 0:03:00]}  d6 {[%clk 0:03:00]} 3. Bb5+ {[%clk 0:02:57]}  Bd7 {[%clk 0:03:00]} 4. Bxd7+ {[%clk 0:02:57]}  Qxd7 {[%clk 0:03:01]} 5. O-O {[%clk 0:02:57]}  Nf6 {[%clk 0:02:59]} 6. Qe2 {[%clk 0:02:57]}  Nc6 {[%clk 0:02:58]} 7. c3 {[%clk 0:02:58]}  e6 {[%clk 0:02:59]} 8. d4 {[%clk 0:02:58]}  cxd4 {[%clk 0:03:00]} 9. cxd4 {[%clk 0:02:59]}  d5 {[%clk 0:03:00]} 10. e5 {[%clk 0:03:00]}  Ne4 {[%clk 0:03:01]} 11. Nbd2 {[%clk 0:03:00]}  Nxd2 {[%clk 0:03:01]} 12. Bxd2 {[%clk 0:03:01]}  Be7 {[%clk 0:03:01]} 13. g3 {[%clk 0:03:02]}  O-O {[%clk 0:02:54]} 14. Kg2 {[%clk 0:03:02]}  a5 {[%clk 0:02:49]} 15. a3 {[%clk 0:02:51]}  a4 {[%clk 0:02:49]} 16. h4 {[%clk 0:02:50]}  f5 {[%clk 0:02:42]} 17. exf6 {[%clk 0:02:50]}  Bxf6 {[%clk 0:02:43]} 18. Bc3 {[%clk 0:02:50]}  Na7 {[%clk 0:02:24]} 19. Rfe1 {[%clk 0:02:43]}  Rae8 {[%clk 0:02:23]} 20. Rad1 {[%clk 0:02:39]}  Nb5 {[%clk 0:02:22]} 21. Bb4 {[%clk 0:02:37]}  Rf7 {[%clk 0:02:22]} 22. Qd3 {[%clk 0:02:27]}  h6 {[%clk 0:02:20]} 23. Re3 {[%clk 0:02:21]}  Na7 {[%clk 0:02:16]} 24. Rde1 {[%clk 0:02:19]}  Nc6 {[%clk 0:02:17]} 25. Bc3 {[%clk 0:02:18]}  Nd8 {[%clk 0:01:25]} 26. R1e2 {[%clk 0:02:16]}  Qc6 {[%clk 0:01:22]} 27. h5 {[%clk 0:02:11]}  b5 {[%clk 0:01:18]} 28. Qg6 {[%clk 0:01:56]}  Qd7 {[%clk 0:01:05]} 29. Qg4 {[%clk 0:01:39]}  Rfe7 {[%clk 0:00:59]} 30. Bb4 {[%clk 0:01:38]}  Rf7 {[%clk 0:00:59]} 31. Bc5 {[%clk 0:01:32]}  Nb7 {[%clk 0:00:53]} 32. Bb4 {[%clk 0:01:20]}  Nd8 {[%clk 0:00:53]} 33. Ba5 {[%clk 0:01:20]}  Nc6 {[%clk 0:00:53]} 34. Bc3 {[%clk 0:01:20]}  Nd8 {[%clk 0:00:53]} 35. Qg6 {[%clk 0:01:17]}  Nc6 {[%clk 0:00:51]} 36. Qd3 {[%clk 0:01:14]}  Nd8 {[%clk 0:00:47]} 37. Nh2 {[%clk 0:01:13]}  Be7 {[%clk 0:00:41]} 38. Ng4 {[%clk 0:01:10]}  Ref8 {[%clk 0:00:34]} 39. Ne5 {[%clk 0:01:09]}  Qc7 {[%clk 0:00:28]} 40. Nxf7 {[%clk 0:01:08]}  Rxf7 {[%clk 0:00:29]} 41. Qxb5 {[%clk 0:01:07]} 1-0


[Site "https://www.chess.com"]